Cogmind - Beta 11 *** ADVENTURER MODE // 2022.04.02 @ 18:00:48 Player: rei Result: Self-destructed Performance ------------- Evolutions (2) 1000 Regions Visited (3) 600 Robots Destroyed (26) 130 Value Destroyed (662) 662 Prototype IDs (0) 0 Alien Tech Used (0) 0 Bonus (0) 0 TOTAL SCORE: 2392 Bonus ------- None Cogmind --------- Core Integrity 500/550 Matter 288/300 Energy 325/325 System Corruption 1% Temperature Cool (0) Movement Treading (160) Location -8/Materials Parts ------- > --- POWER (2) -------- Reinforced Ion Engine Light Nuclear Core > --- PROPULSION (4) --- Light Treads Light Treads Light Treads > --- UTILITY (3) ------ Structural Scanner Power Shielding Hardened Medium Armor Plating > --- WEAPON (2) ------- Minigun Katana > --- INVENTORY (5) ---- Ion Engine Aluminum Leg Cooling System Grenade Launcher Heavy Mace Peak State ------------ > --- POWER ------------ Reinforced Ion Engine Light Nuclear Core > --- PROPULSION ------- Light Treads Light Treads Light Treads > --- UTILITY ---------- Structural Scanner Power Shielding Hardened Medium Armor Plating > --- WEAPON ----------- Minigun Katana > --- INVENTORY -------- Ion Engine Aluminum Leg Cooling System Grenade Launcher Heavy Mace [Rating: 19] Favorites ----------- Power Ion Engine Engine Ion Engine Power Core Light Nuclear Core Propulsion Light Treads Treads Light Treads Utility Structural Scanner Device Structural Scanner Storage Small Storage Unit Protection Power Shielding Weapon Beam Cannon Energy Gun Medium Laser Energy Cannon Beam Cannon Ballistic Gun Assault Rifle Impact Weapon Heavy Mace Slashing Weapon Katana Build | -11 -10 -9 -8 ------- Run | Scr Mat Mat Mat Slots Evolved 4 | . . 2 2 Power 1 | . . 1 . Propulsion 2 | . . 1 1 Utility 1 | . . . 1 Weapon . | . . . . Parts Attached 28 | 6 10 5 7 Power 5 | 1 1 2 1 Engine 4 | 1 1 2 . Core 1 | . . . 1 Reactor . | . . . . Propulsion 5 | 2 . 1 2 Treads 5 | 2 . 1 2 Leg . | . . . . Wheel . | . . . . Hover . | . . . . Flight . | . . . . Utility 9 | 1 6 1 1 Device 2 | . 2 . . Storage 4 | 1 3 . . Processor . | . . . . Hackware . | . . . . Protection 3 | . 1 1 1 Artifact . | . . . . Weapon 9 | 2 3 1 3 Energy Gun 1 | 1 . . . Energy Cannon 2 | . 2 . . Ballistic Gun 3 | 1 1 . 1 Ballistic Cannon . | . . . . Launcher . | . . . . Special Weapon . | . . . . Impact Weapon 1 | . . . 1 Slashing Weapon 2 | . . 1 1 Piercing Weapon . | . . . . Special Melee Weapon . | . . . . Unidentified Prototypes . | . . . . Parts Lost 1 | . . . 1 Power . | . . . . Propulsion 1 | . . . 1 Utility . | . . . . Weapon . | . . . . Highest Loss Streak 1 | . . . 1 To Critical Strikes . | . . . . Average Slot Usage (%) 91 | . 92 97 86 Engine 15 | . 14 22 12 Core 1 | . . . 5 Treads 27 | . 28 31 23 Device 8 | . 7 11 9 Storage 5 | . 13 . . Protection 9 | . . 11 18 Energy Gun 2 | . 5 . . Energy Cannon 9 | . 11 11 7 Ballistic Gun 6 | . 11 4 1 Impact Weapon 2 | . . . 6 Slashing Weapon 2 | . . 6 2 Naked Turns . | . . . . Heaviest Build 31 | 12 17 29 31 Greatest Support 60 | 40 40 60 60 Greatest Overweight (x) . | . . . . Average Overweight (x) . | . . . . Largest Inventory Capacity 15 | 8 15 5 5 Average Capacity 6 | 7 7 5 5 Most Carried 6 | 3 6 5 5 Average Carried 4 | 1 3 3 4 Final Capacity 8 | 8 5 5 5 Final Carried 5 | 1 3 5 5 Class Distribution -------------------- 100% | Mutant Dominant Class ---------------- Mutant | -10/Materials Mutant | -9/Materials Mutant | -8/Materials Resources | -11 -10 -9 -8 ----------- Run | Scr Mat Mat Mat Matter Collected 562 | 235 85 146 96 Remotely . | . . . . Salvage Created 820 | . 122 339 359 Parts 60 | . 14 27 19 Haulers Intercepted . | . . . . Recyclers Shooed 1 | . . 1 . Parts Field Recycled . | . . . . Retrieved Matter . | . . . . Parts Self-Destructed . | . . . . Prevented . | . . . . Kills | -11 -10 -9 -8 ------- Run | Scr Mat Mat Mat Combat Hostiles Destroyed 19 | . 5 8 6 Melee 9 | . . 4 5 Guns 5 | . 4 . 1 Cannons 5 | . 1 4 . Classes Destroyed 8 | . 2 2 4 Worker 2 | . . . 2 Builder 1 | . . . 1 Tunneler 1 | . . . 1 Watcher 3 | . 2 1 . Swarmer 5 | . 5 . . Grunt 10 | . . 7 3 Brawler 1 | . . 1 . Sentry 3 | . . . 3 Best Kill Streak 3 | . 3 2 2 Combat Bots Only 3 | . 3 2 2 Max Kills in Single Turn 2 | . 2 1 1 Gunslinging 1 | . 1 . . Exploded . | . . . . Melee 1 | . . 1 1 Uniques/NPCs Destroyed . | . . . . Combat | -11 -10 -9 -8 -------- Run | Scr Mat Mat Mat Damage Taken 970 | . 108 461 401 Core 136 | . 20 66 50 Absorbed by Shields . | . . . . Redirected to Shielding 17 | . . 10 7 Regen/Repaired (Parts) 138 | . . . 138 Core Remaining (%) 91 | 100 92 83 . Volleys Fired 37 | . 21 8 8 Largest 2 | . 2 2 1 Hottest 80 | . 80 80 60 Shots Fired 60 | . 37 14 9 Gun 38 | . 25 6 7 Cannon 22 | . 12 8 2 Launcher . | . . . . Special . | . . . . Kinetic 29 | . 16 6 7 Thermal 31 | . 21 8 2 Explosive . | . . . . Electromagnetic . | . . . . Robot Hit Streak 7 | . 7 6 3 Robot Miss Streak 2 | . 2 1 1 Penetration Max . | . . . . Secondary Targets 2 | . 2 . . Max Gunslinging Chain 1 | . 1 . . Shots Hit Robots 73 | . 21 23 29 Core Hits 29 | . 9 13 7 Critical Kills . | . . . . Critical Parts Destroyed 1 | . . . 1 Critical Strikes 2 | . . 1 1 Smash 1 | . . . 1 Sever 1 | . . 1 . Melee Attacks 44 | . . 17 27 Impact 19 | . . . 19 Slashing 25 | . . 17 8 Piercing . | . . . . Sneak Attacks 4 | . . . 4 Combat Hostiles . | . . . . Follow-up Attacks . | . . . . Damage Inflicted 2087 | . 291 622 1174 Guns 353 | . 187 57 109 Cannons 210 | . 104 106 . Explosions . | . . . . Melee 1524 | . . 459 1065 Ramming . | . . . . Kinetic 303 | . 137 57 109 Thermal 260 | . 154 106 . Explosive . | . . . . Electromagnetic . | . . . . Impact 843 | . . . 843 Slashing 681 | . . 459 222 Piercing . | . . . . Highest Corruption 1 | . 1 . 1 Average Corruption 1 | . 1 . 1 Corruption Purged . | . . . . Corruption Blocked . | . . . . Effects 6 | . 4 . 2 Message Errors 3 | . 2 . 1 Energy Discharges 1 | . 1 . . Parts Rejected 1 | . 1 . . Misfires 1 | . . . 1 Overload Shots . | . . . . Overflow Damage 272 | . . 12 260 Projectiles . | . . . . Explosions . | . . . . Melee 272 | . . 12 260 Knockbacks 2 | . . . 2 Impact 2 | . . . 2 Kinetic . | . . . . Secondary . | . . . . Self-Inflicted Damage . | . . . . Shots . | . . . . Rammed . | . . . . Targets Rammed . | . . . . Kicked . | . . . . Crushed . | . . . . Highest Temperature 84 | . 82 84 39 Average Temperature 23 | . 21 33 14 Received Heat Transfer 492 | . . 303 189 Siege Activations . | . . . . Robots Corrupted . | . . . . Combat Hostiles . | . . . . Parts Fried 5 | . . . 5 Impact Corruptions 10 | . . . 10 Robots Melted . | . . . . Combat Hostiles . | . . . . Parts Melted 2 | . 2 . . Heat Transferred 592 | . 370 222 . Parts Sabotaged . | . . . . Parts Stolen . | . . . . Parts Stripped . | . . . . Power Chain Reactions . | . . . . Missiles Intercepted . | . . . . Alert | -11 -10 -9 -8 ------- Run | Scr Mat Mat Mat Peak Influence 272 | . 115 272 192 Initial 36 | . . 30 36 Average 75 | . 60 128 67 Maximum Alert Level 1 | . . 1 . Low Security (%) 96 | 100 100 84 100 Level 1 3 | . . 15 . Level 2 . | . . . . Level 3 . | . . . . Level 4 . | . . . . Level 5 . | . . . . High Security . | . . . . Max Security . | . . . . Squads Dispatched 5 | . . 3 2 Investigation 1 | . . . 1 Extermination . | . . . . Reinforcement 4 | . . 3 1 Assault . | . . . . Garrison . | . . . . Intercept . | . . . . Searches Triggered . | . . . . Construction Impeded . | . . . . Haulers Reinforced . | . . . . Active Scanning Responses . | . . . . Cargo Convoy Interrupts . | . . . . Stealth | -11 -10 -9 -8 --------- Run | Scr Mat Mat Mat Distress Signals 1 | . . 1 . Communications Jammed . | . . . . Distress Signals . | . . . . Times Spotted 38 | . 12 17 9 Peak Tracking Total 5 | . 3 5 3 Tactical Retreats 4 | . 1 2 1 Traps | -11 -10 -9 -8 ------- Run | Scr Mat Mat Mat Traps Triggered 2 | . 2 . . Indirectly . | . . . . Trap Hack Attempts . | . . . . Triggered . | . . . . Disarmed . | . . . . Reprogrammed . | . . . . Reused . | . . . . Traps Extracted . | . . . . Installed . | . . . . Triggered . | . . . . Machines | -11 -10 -9 -8 ---------- Run | Scr Mat Mat Mat Machines Disabled . | . . . . Max in Single Turn . | . . . . Machines Sabotaged . | . . . . Garrisons Compromised . | . . . . Overloaded Fab Kills . | . . . . Hacking | -11 -10 -9 -8 --------- Run | Scr Mat Mat Mat Machines Accessed 3 | . . 1 2 Terminals 2 | . . 1 1 Fabricators . | . . . . Repair Stations 1 | . . . 1 Recycling Units . | . . . . Scanalyzers . | . . . . Garrison Access . | . . . . Total Hacks 5 | . . 1 4 Successful 5 | . . 1 4 Failed . | . . . . Catastrophic . | . . . . Database Lockouts . | . . . . Manual 1 | . . 1 . Terminals 2 | . . 1 1 Fabricators . | . . . . Repair Stations 3 | . . . 3 Recycling Units . | . . . . Scanalyzers . | . . . . Garrison Access . | . . . . Terminal Hacks 2 | . . 1 1 Branch Access Points 1 | . . 1 . Emergency Access Points 1 | . . . 1 Fabricator Hacks . | . . . . Repair Station Hacks 3 | . . . 3 Scan Component 2 | . . . 2 Repair 1 | . . . 1 Recycling Unit Hacks . | . . . . Scanalyzer . | . . . . Garrison Access Hacks . | . . . . Unauthorized Hacks . | . . . . Terminals . | . . . . Fabricators . | . . . . Repair Stations . | . . . . Recycling Units . | . . . . Scanalyzers . | . . . . Garrison Access . | . . . . Data Cores Recovered . | . . . . Used . | . . . . Hacking Detections 2 | . . 1 1 Full Trace Events 1 | . . . 1 Feedback Events 1 | . . . 1 Corruption 1 | . . . 1 Feedback Blocked . | . . . . Robot Schematics Acquired . | . . . . Robots Built . | . . . . Authchips . | . . . . Time . | . . . . Total Robot Build Rating . | . . . . Part Schematics Acquired . | . . . . Parts Built . | . . . . Authchips . | . . . . Time . | . . . . Total Part Build Rating . | . . . . Parts Repaired 1 | . . . 1 Time 26 | . . . 26 Parts Recycled . | . . . . Recycled Matter . | . . . . Retrieved Matter . | . . . . Retrieved Components . | . . . . Parts Scanalyzed . | . . . . Part Schematics Acquired . | . . . . Parts Damaged . | . . . . Bothacking | -11 -10 -9 -8 ------------ Run | Scr Mat Mat Mat Used RIF Installer . | . . . . Robots Hacked . | . . . . Non-combat . | . . . . Combat . | . . . . Robot Hacks Applied . | . . . . Relay Couplers Released . | . . . . Fabnet Peak Effective % . | . . . . Robots Rewired . | . . . . Allies Hacked . | . . . . Hacks Repelled . | . . . . Allies | -11 -10 -9 -8 -------- Run | Scr Mat Mat Mat Total Allies . | . . . . Largest Group . | . . . . Highest-Rated Group . | . . . . Highest-Rated Ally . | . . . . Total Orders . | . . . . Ally Attacks . | . . . . Total Damage . | . . . . Kills . | . . . . Allies Corrupted . | . . . . Allies Melted . | . . . . Intel | -11 -10 -9 -8 ------- Run | Scr Mat Mat Mat Robot Analysis Total . | . . . . Derelict Logs Recovered . | . . . . Drone Launches . | . . . . Drone Recoveries . | . . . . Exploration | -11 -10 -9 -8 ------------- Run | Scr Mat Mat Mat Turns Passed 1907 | 115 732 438 622 Spaces Moved 956 | 63 406 222 265 Core 8 | 8 . . . Treads 948 | 55 406 222 265 Legs . | . . . . Wheels . | . . . . Hover . | . . . . Flight . | . . . . Fastest Speed 50 | 50 160 160 160 Average Speed 159 | 146 160 160 160 Slowest Speed 160 | 160 160 160 160 Overloaded Moves . | . . . . Propulsion Burnouts . | . . . . Robots Hopped . | . . . . Cave-ins Triggered . | . . . . Exploration Rate (%) 30 | 5 66 31 18 Regions Visited 3 Branch Regions . Pre-discovered Areas . | . . . . Known Exits Taken . | . . . . Unknown Exits Taken 3 | 1 1 1 . Scrap Searched . | . . . . Spaces Dug 1 | . . 1 . Terrain Destroyed 1 | . . 1 . Melee 1 | . . 1 . Projectile . | . . . . AOE . | . . . . Terrain Rammed . | . . . . Walls Destroyed . | . . . . Machines Disabled . | . . . . Actions | -11 -10 -9 -8 --------- Run | Scr Mat Mat Mat Total 1210 | 86 451 264 409 Wait 114 | 11 . 7 96 Move 953 | 62 405 221 265 Hop . | . . . . Pick Up 24 | 7 9 5 3 Fast Attach 5 | . 2 . 3 Attach 12 | 6 3 2 1 Detach . | . . . . Swap 11 | . 5 3 3 Drop 10 | . 6 1 3 Fire 37 | . 21 8 8 Melee 44 | . . 17 27 Ram . | . . . . Kick . | . . . . Crush . | . . . . Escape Stasis . | . . . . Rewire . | . . . . Trap . | . . . . Miscellaneous . | . . . . Route ------- -11/Scrapyard -10/Materials (discovered 3 exits: *Mat x2 / [*Min]) -9/Materials (discovered 3 exits: *Mat / *Min / *Sto) -8/Materials History --------- Turn | Location | Event 11 | -11/Scrapyard | Discovered new exit (range 15) 116 | -11/Scrapyard | Entered Materials 254 | -10/Materials | Discovered new exit (range 7) 317 | -10/Materials | Build established: Mutant 583 | -10/Materials | Discovered new exit (range 15) 759 | -10/Materials | Discovered new exit (range 16) 848 | -10/Materials | Entered another Materials area 848 | -9/Materials | Evolved 2 slots: Power x1, Propulsion x1 859 | -9/Materials | Discovered new exit (range 16) 1013 | -9/Materials | Identified exit to Mines 1013 | -9/Materials | Identified exit to Storage 1254 | -9/Materials | Discovered new exit (range 16) 1286 | -9/Materials | Entered another Materials area 1286 | -8/Materials | Evolved 2 slots: Propulsion x1, Utility x1 1361 | -8/Materials | Repaired Lgt. Treads 1908 | -8/Materials | Self-destructed Last Messages --------------- K-01 Serf cleans the Electrolysis Chamber. Y-45 Defender destroyed. K-01 Serf collects debris. K-01 Serf cleans the Electrolysis Chamber. K-01 Serf collects debris. Acquired Lgt. Treads. K-01 Serf collects debris. Acquired 20 matter. K-01 Serf collects debris. Dropped Beam Cannon. Acquired Minigun. K-01 Serf collects debris. K-01 Serf cleans the Material Compactor. K-01 Serf collects debris. K-01 Serf cleans the Material Compactor. HZRATV1 U:SSSRDPOFDKJ/FQCRHF Y-45 Defender destroyed. Acquired 26 matter. Destroyed Imp. Hover Unit. ALERT: Hostiles spotted, dispatching reinforcements to Terminal M008. Map ----- +----------------------------------------------------+ | ?????#### ####???????????????????????????? # | | ???????##%##?????????????????????????????? # | | ???????##%##?????????????????????????????? + | | ???????## ##???#####?????????????????????? # | | ???????## ##?############????????????????? # | | ???????## ##?#### #######????????????????? # | | ???????## ##?## ##????????????????? # | | ???????## ##?## """ ##?????????????????## | | ???????## ##?## """ ##?????????????????## | | ######### ##?## """ ##?????????????????## | | ######### ##?## ##?????????????????## | | # "" # ##?## ! ##?????????????????## | | # ""S # ##?## %!"T" ##????????????????? # | | # "" # ##?## ! """ ##????????????????? # | | # # #####! ##????????????????? # | | # # #########+#####????????????????? # | | # # ^ ##????????????????? # | | # # ##????????????????? # | | # """ !# """ ##??????????????????? | | # """""%+![ """ ##??????????????????? | | # """""[#! """ ##??????????????????? | | # """"" # ##??????????????????? | | # """ ##### ##??????????????????? | | # ##### "" ##??????????????????? | | # ##?## """ ##??????????????????? | | # ##?## """ @ ##??????????????????? | | # ] ##?## ##??????????????????? | | # ##?## ##??????????????????? | | ####### ##?## """ ###??????????????????? | | ##########?## """ a###??????????????????? | | ?????#####?## """ =##???????????????????? | | ???????????## !%##???????????????????? | | ???????????## =##???????????????????? | | ???????????## """ ##???????????????????? | | ????????????????"" ##???????????????????? | | ????????????????"" w##???????????????????? | | ????????????????? a h ???????????????????? | | ????????????????? ????????????????????? | | ?????????????????a ????????????????????? | | ????????????????? ????????????????????? | | ?????????????????"T" ?????????????????????? | | ???????????????????????????????????????????? | | ???????????????????????????????????????????? | | ???????????????????????????????????????????? | | ???????????????????????????????????????????? | | ???????????????????????????????????????????? | | ???????????????????????????????????????????? | | ???????????????????????????????????????????? | | ???????????????????????????????????????????? | | ???????????????????????????????????????????? | +----------------------------------------------------+ Best States ------------- Heat Dissipation 31 Energy Generation 21 Energy Capacity 415 Matter Stores 300 Matter Capacity 300 Sight Range 16 Terrain Scan Range 14 Terrain Scan Density 10 Armor Coverage 225 Resistance: KI 20 Resistance: TH 20 Resistance: EX 20 Resistance: EM 20 Resistance: I 20 Resistance: S 20 Resistance: P 20 Power Shielding 33 Evasion (%) 40 Recoil Reduction 3 Offensive Hacking 10 Item Schematics ----------------- None Robot Schematics ------------------ None Fabricated ------------ Nothing Alien Tech Used ----------------- None Achievements -------------- None Challenges ------------ None Game ------ Seed LaserMyomerAnalyzer Manual? 0 Play Time 00:20:42 Cumulative 13.0 hours Start 2022.03.31 @ 18:38:28 End 2022.04.02 @ 18:00:48 Sessions 4 Manual Loads 0 Difficulty Adventurer Special Mode None Game No. 15 Rogue 0 Adventurer 15 Explorer 0 Win Type - Total 0 Types 0/0/0/0/0/0/0/0/0 Lore% 15 Gallery% 22 Achievement% 23 Wizard Run 0 Options --------- ASCII 0 Keyboard 0 Movement Mouse Keybinds 0 Fullscreen 2 Font 18/SmallcapsGlow Map View 76x50 Tactical HUD 0 Map Filters NONE Filters NONE Steam 1 RUN: ca16c91a-b88b-4384-9b94-c4979f9d5801